bitfinex/quotes_ETHUSD_20240821
["timestamp","ask_amount","ask_price","bid_price","bid_amount"]
[1724232527634,0.7933424,2579.8,2579.1,0.55]
[1724232528134,0.7933424,2579.8,2579.2,0.05086971]
[1724232529150,0.7933424,2579.8,2579.0,2.264]
[1724232529339,0.7933424,2579.8,2579.3,0.05086971]
[1724232529656,0.7933424,2579.8,2579.4,0.05086971]
[1724232529860,0.7933424,2579.8,2579.0,3.3014]
[1724232530016,0.7933424,2579.8,2579.1,0.05086971]
[1724232530650,4.5804444,2579.9,2579.2,2.3266]
[1724232530854,3.0,2579.9,2579.3,0.55]
[1724232532562,3.60784395,2580.0,2579.3,0.55]
[1724232535662,2.4425,2579.9,2579.0,2.255]
[1724232535879,3.38500439,2579.9,2579.1,0.05086971]
[1724232536278,2.4425,2579.7,2579.1,0.05086971]
[1724232536643,2.4425,2579.7,2578.6,2.955]
[1724232536843,0.54425,2579.6,2578.7,0.343075]
[1724232537019,3.54425,2579.6,2578.7,0.343075]
[1724232538950,3.54425,2579.6,2578.8,2.3617]
[1724232539820,3.0,2579.6,2579.0,2.3617]
[1724232539985,5.8172,2579.7,2579.0,2.3617]
[1724232540183,5.8172,2579.7,2579.3,2.2733]
[1724232541210,5.8172,2579.7,2579.0,2.4192]
[1724232541211,0.42205737,2579.6,2579.0,2.4192]
[1724232541413,0.42203759,2579.5,2579.0,2.4192]
[1724232541619,8.1407,2579.7,2579.1,0.04764591]
[1724232541912,8.1407,2579.7,2579.0,2.4192]
[1724232541913,0.42203934,2579.6,2579.0,2.4192]
[1724232542119,8.1407,2579.7,2579.0,2.4192]
[1724232542120,0.42203934,2579.5,2579.0,2.4192]
[1724232542271,0.42203934,2579.4,2579.1,0.04764591]
[1724232542474,0.42197239,2579.3,2579.1,0.04764591]
[1724232542669,8.1407,2579.7,2579.1,0.04764591]
[1724232542906,8.1407,2579.7,2579.0,2.4192]
[1724232542907,0.42196035,2579.6,2579.0,2.4192]
[1724232543212,0.42196035,2579.5,2579.0,2.4192]
[1724232543420,0.42196035,2579.4,2579.1,0.35960136]
[1724232543626,5.8172,2579.7,2579.1,0.04768136]
[1724232543768,0.42198374,2579.6,2579.1,0.04768136]
[1724232544115,2.3945,2579.4,2578.7,2.4335]
[1724232544316,0.42198374,2579.3,2578.7,2.4335]
[1724232544523,2.97614837,2579.4,2578.8,0.0476725]
[1724232544703,0.42196967,2579.3,2578.8,0.0476725]
[1724232545012,3.0,2579.6,2578.8,0.0476725]
[1724232545212,0.42198021,2579.5,2578.7,2.4335]
[1724232545425,0.34219802,2579.4,2578.9,0.04769022]
[1724232545717,0.42197145,2579.3,2578.7,2.4335]
[1724232546043,0.42197145,2579.2,2579.0,0.04781432]
[1724232546178,0.34219802,2579.4,2578.7,2.4335]
[1724232546379,0.421786,2579.3,2578.7,2.4335]
[1724232546580,3.0,2579.6,2578.8,0.04781432]
[1724232546810,0.42180333,2579.5,2579.0,2.4645]
[1724232546968,0.42180333,2579.4,2579.0,2.4645]
[1724232547169,3.0,2579.6,2579.1,0.04818658]
[1724232547170,0.42182178,2579.3,2579.1,0.04818658]
[1724232547519,3.0,2579.6,2579.1,0.04818658]
[1724232547675,0.42185332,2579.5,2579.1,0.04818658]
[1724232547871,0.42185332,2579.4,2579.1,0.04818658]
[1724232548218,3.0,2579.6,2579.1,0.04818658]
[1724232548429,0.42184064,2579.5,2579.1,0.04818658]
[1724232548722,0.42184064,2579.4,2579.1,0.04818658]
[1724232548924,0.42184064,2579.3,2579.1,0.04818658]
[1724232549070,4.12117,2579.6,2579.1,0.04818658]
[1724232549276,3.0,2579.6,2579.2,2.3452]
[1724232549475,0.42184928,2579.5,2579.3,0.04807134]
[1724232549673,3.0,2579.6,2579.0,2.3452]
[1724232549988,0.42183268,2579.5,2579.1,0.04807134]
[1724232550197,0.42183268,2579.4,2579.1,0.04807134]
[1724232550416,0.42183268,2579.3,2578.9,0.55]
[1724232550620,2.392,2579.5,2579.2,0.04807134]
[1724232550824,0.42182705,2579.4,2578.9,0.55]
[1724232550987,0.42182705,2579.3,2578.9,0.55]
[1724232551235,0.42182705,2579.2,2579.0,0.04807134]
[1724232551438,0.42182705,2579.1,2579.0,0.04807134]
[1724232552124,2.74752705,2579.1,2578.6,0.7]
[1724232552338,0.42182705,2579.0,2578.6,0.7]
[1724232552539,0.42182705,2578.9,2578.7,0.04805361]
[1724232552780,2.3257,2579.1,2578.7,0.04805361]
[1724232552781,0.42182705,2578.8,2578.7,0.04805361]
[1724232553087,0.42175961,2578.8,2578.7,0.04805361]
[1724232556779,0.42187039,2578.8,2578.7,0.04805361]
[1724232557098,0.42187039,2578.8,2578.7,0.35706897]
[1724232557445,0.42187039,2578.8,2578.7,2.72486897]
[1724232557646,0.42187561,2578.8,2578.7,3.27486897]
[1724232557855,0.42187561,2578.8,2578.7,2.72486897]
[1724232558801,5.8172,2579.7,2579.0,2.4427]
[1724232558947,3.42590994,2579.6,2578.7,3.04075361]
[1724232559141,3.42590994,2579.6,2579.1,0.04679462]
[1724232559142,0.42188994,2579.5,2579.1,0.04679462]
[1724232559342,0.42188994,2579.4,2578.7,2.9927]
[1724232559545,0.42188994,2579.3,2578.7,2.9927]
[1724232559811,0.42188994,2579.2,2578.8,0.41606462]
[1724232559964,0.42188994,2579.1,2578.8,0.04679462]
[1724232560275,0.42188994,2579.0,2578.7,2.9927]
[1724232560445,3.00402,2579.6,2578.7,2.9927]
[1724232560665,1.30401074,2579.5,2578.8,0.04677689]
[1724232560844,0.882122,2579.5,2578.8,0.04677689]
[1724232561181,0.42189173,2579.4,2578.8,0.04677689]
[1724232561359,0.42189173,2579.3,2578.8,0.04677689]
[1724232561561,0.42189173,2579.2,2578.8,0.04677689]
[1724232561791,0.42189173,2579.1,2578.7,2.9927]
[1724232561991,0.882122,2579.5,2578.7,2.9927]
[1724232561992,0.42189173,2579.0,2578.7,2.9927]
[1724232562199,0.42189173,2578.9,2578.8,0.04672369]
[1724232562562,0.42189173,2578.9,2578.7,2.9927]
[1724232562768,0.42189173,2578.8,2578.7,2.9927]
[1724232563603,2.4223,2579.6,2578.7,2.9927]
[1724232563765,0.421838,2579.5,2578.9,0.7]
[1724232564092,5.4223,2579.6,2578.9,0.7]
[1724232564093,0.421838,2579.4,2578.9,0.7]
[1724232564298,0.421838,2579.3,2578.9,0.7]
[1724232564507,0.4218249,2579.2,2578.9,0.7]
[1724232564799,0.4218249,2579.1,2578.9,0.7]
[1724232565001,0.4218249,2579.0,2578.9,0.7]
[1724232565151,2.8411249,2579.0,2578.9,0.55]
[1724232565354,2.8411249,2579.0,2578.3,5.02270552]
[1724232565355,2.4193,2578.9,2578.3,0.7]
[1724232565555,0.4218249,2578.8,2578.3,0.7]
[1724232565871,0.4218249,2578.7,2578.3,0.7]
[1724232566204,2.4193,2578.9,2578.3,0.7]
[1724232566205,0.4218249,2578.6,2578.3,0.7]
[1724232566359,0.4218249,2578.5,2578.3,0.7]
[1724232566560,0.4218249,2578.4,2578.3,0.7]
[1724232567709,2.4193,2578.9,2578.3,0.7]
[1724232567891,0.42176427,2578.8,2578.3,0.99928]
[1724232568094,0.42176427,2578.7,2578.3,0.99928]
[1724232568276,0.42176427,2578.6,2578.3,0.99928]
[1724232568486,0.42176427,2578.5,2578.3,0.99928]
[1724232568675,8.2707,2579.1,2578.3,0.99928]
[1724232568873,0.42174029,2579.0,2578.3,0.99928]
[1724232569088,0.42174029,2578.9,2578.3,0.99928]
[1724232569294,0.42174029,2578.8,2578.3,0.99928]
[1724232569563,8.2707,2579.1,2578.3,0.29928]
[1724232569564,0.42174029,2578.7,2578.3,0.29928]
[1724232569789,0.42174029,2578.6,2578.3,0.29928]
[1724232570014,0.42174029,2578.5,2578.3,0.29928]
[1724232570196,8.2707,2579.1,2578.3,0.29928]
[1724232570392,0.42173327,2579.0,2578.2,0.7]
[1724232570591,0.42173327,2578.9,2578.2,0.7]
[1724232570886,0.42173327,2578.8,2578.2,0.7]
[1724232571082,0.42173327,2578.7,2578.2,0.7]
[1724232571282,0.42173327,2578.6,2578.2,0.7]
[1724232571576,0.42171324,2578.5,2578.3,0.29928]
[1724232571779,8.2707,2579.1,2578.3,0.29928]
[1724232571780,8.2707,2579.1,2578.3,2.4151]
[1724232572033,0.42171822,2579.0,2578.5,0.7]
[1724232572180,8.2707,2579.1,2578.5,0.7]
[1724232572181,0.42171822,2578.9,2578.5,0.7]
[1724232572381,0.42171779,2578.8,2578.5,0.7]
[1724232572623,0.42171779,2578.7,2578.6,0.04534244]
[1724232572986,0.42171779,2579.0,2578.6,2.37584244]
[1724232573187,0.42171779,2578.9,2578.6,2.3305]
[1724232573399,0.42171779,2578.8,2578.6,2.3305]
[1724232573601,5.8172,2579.1,2578.7,0.04534244]
[1724232573810,0.42173085,2579.0,2578.7,0.04534244]
[1724232574013,0.42173085,2578.9,2578.6,2.3305]
[1724232574323,0.42173085,2578.8,2578.7,0.04534244]
[1724232575638,0.42173085,2578.8,2578.5,0.7]
[1724232575843,2.3229,2579.0,2578.5,0.7]
[1724232576146,0.42172061,2578.9,2578.6,0.04534244]
[1724232576333,0.42172061,2578.8,2578.6,0.04534244]
[1724232576639,0.42172061,2578.7,2578.6,0.04534244]
[1724232576924,0.42172061,2578.7,2578.1,2.3934]
[1724232577132,0.42172061,2578.6,2578.2,0.30934]
[1724232577282,0.42172061,2578.5,2578.4,0.7]
[1724232577687,0.42172061,2578.5,2578.4,0.74534244]
[1724232578025,0.42172061,2578.5,2578.4,1.29534244]
[1724232578743,2.3229,2579.0,2578.4,1.29534244]
[1724232579037,0.42174088,2578.9,2578.4,1.29534244]
[1724232579586,0.42174088,2578.9,2578.4,0.04534244]
[1724232579787,0.42174088,2578.9,2578.2,0.30934]
[1724232580035,0.42174088,2578.9,2578.5,0.04565254]
[1724232580338,0.42174088,2578.9,2578.2,0.30934]
[1724232580520,0.42174088,2578.8,2578.6,0.04565254]
[1724232580835,2.3229,2579.0,2578.1,3.0934]
[1724232580836,0.42174088,2578.7,2578.1,3.0934]
[1724232581130,0.42174088,2578.6,2578.2,0.55]
[1724232581377,0.42174088,2578.5,2578.2,0.55]
[1724232581541,2.3229,2579.0,2578.2,0.55]
[1724232581743,0.42172385,2578.9,2578.2,0.91434]
[1724232581905,0.42172385,2578.8,2578.2,0.91434]
[1724232582096,2.3229,2579.0,2578.2,0.91434]
[1724232582097,0.42172385,2578.7,2578.2,0.91434]
[1724232582296,0.42172385,2578.6,2578.2,0.91434]
[1724232582528,0.42172385,2578.5,2578.2,0.91434]
[1724232582839,2.3229,2579.0,2578.2,0.91434]
[1724232582840,2.3229,2579.0,2578.3,0.400774]
[1724232583042,0.42173061,2578.9,2578.3,0.400774]
[1724232583194,0.42173061,2578.8,2578.5,2.342]
[1724232583547,0.42173061,2578.7,2578.5,2.342]
[1724232583726,0.42173061,2578.6,2578.5,2.342]
[1724232583929,6.42525,2579.1,2578.5,2.6862774]
[1724232584245,0.42174186,2579.0,2578.5,2.6862774]
[1724232584592,0.42174186,2579.0,2578.8,2.2849]
[1724232587678,0.42184699,2578.9,2578.8,2.2849]
[1724232588269,0.42184699,2578.9,2578.5,2.6658774]
[1724232588446,0.42184699,2578.8,2578.5,2.6658774]
[1724232588766,0.42183555,2578.7,2578.6,0.04183336]
[1724232590716,0.42183555,2578.7,2578.2,2.4019]
[1724232590918,0.42183555,2578.6,2578.3,0.04183336]
[1724232591166,0.42183555,2578.5,2578.3,0.04183336]
[1724232591457,2.2963,2578.7,2578.3,0.04183336]
[1724232591458,0.42171642,2578.4,2578.3,0.04183336]
[1724232593269,2.3693,2579.1,2578.3,0.04183336]
[1724232593434,1.24027654,2579.0,2578.3,0.04183336]
[1724232593630,0.42162654,2578.9,2578.3,0.04183336]
[1724232593837,0.42162654,2578.8,2578.3,0.04183336]
[1724232594038,0.42162654,2578.7,2578.3,0.04183336]
[1724232594239,0.42162654,2578.6,2578.3,0.04183336]
[1724232594562,0.42162654,2578.5,2578.3,0.3562067]
[1724232594772,0.81865,2579.0,2578.3,0.3562067]
[1724232594773,0.81865,2579.0,2578.3,0.04183336]
[1724232595074,0.42165872,2578.9,2578.3,0.04183336]
[1724232595228,0.42165872,2578.8,2578.3,0.04183336]
[1724232595423,0.42165872,2578.9,2578.3,0.04183336]
[1724232595650,0.42165872,2578.8,2578.3,0.04183336]
[1724232595966,0.42165872,2578.7,2578.3,0.04183336]
[1724232596469,0.42165872,2578.6,2578.3,0.04183336]
[1724232597628,0.42165872,2578.6,2578.1,0.7]
[1724232597853,0.42165872,2578.6,2578.4,0.04183336]
[1724232598324,0.42165872,2578.5,2578.1,0.7]
[1724232598531,0.42165872,2578.4,2578.1,0.7]
[1724232598939,0.42165872,2578.3,2578.1,0.7]
[1724232599272,0.4216053,2578.2,2578.1,0.7]
[1724232601888,2.7834053,2578.2,2577.5,2.3566]
[1724232602177,2.7834053,2578.2,2577.3,3.0566]
[1724232602178,0.27834053,2578.1,2577.3,3.0566]
[1724232602345,0.69986281,2578.1,2577.3,3.0566]
[1724232602546,2.499,2577.9,2577.3,0.7]
[1724232602877,0.42152228,2577.8,2577.3,0.7]
[1724232603104,0.42152228,2577.7,2577.1,2.4892]
[1724232603382,0.42152228,2577.7,2576.8,10.24386342]
[1724232603383,2.83512228,2577.6,2576.8,3.0661]
[1724232603584,2.69711223,2577.6,2576.8,3.0661]
[1724232603747,0.42148615,2577.5,2576.8,3.0661]
[1724232603965,2.4136,2577.6,2576.8,3.0661]
[1724232604305,5.8172,2578.0,2577.1,0.7]
[1724232604518,2.70381016,2577.9,2577.2,2.4819]
[1724232604840,5.8172,2578.0,2577.4,0.7]
[1724232604952,2.3261,2578.2,2577.4,0.7]
[1724232604953,0.42154065,2577.9,2577.4,0.7]
[1724232605155,2.3261,2578.2,2577.4,0.7]
[1724232605382,0.42151748,2578.1,2577.4,0.7]
[1724232605611,2.3261,2578.2,2577.4,0.7]
[1724232605612,0.42151748,2578.0,2577.4,0.7]
[1724232605825,0.42151748,2577.9,2577.4,1.091009]
[1724232606100,2.3261,2578.2,2577.4,1.791009]
[1724232606255,0.4214865,2578.1,2577.4,1.791009]
[1724232606452,0.4214865,2578.0,2577.4,1.791009]
[1724232606712,0.4214865,2577.9,2577.4,1.791009]
[1724232606910,2.3523,2577.8,2577.4,1.091009]
[1724232607199,2.3523,2577.8,2577.2,9.8919]
[1724232609073,2.3523,2577.8,2577.2,7.41]
[1724232610178,2.3523,2577.8,2577.2,9.8836]
[1724232610757,2.3523,2577.8,2577.2,2.4736]
[1724232610961,2.3523,2577.8,2577.2,2.79096]
[1724232611825,2.3523,2577.8,2577.2,0.31736]
[1724232612013,2.3523,2577.8,2577.1,0.7]
[1724232612219,2.3523,2577.8,2577.2,0.55]
[1724232612758,2.3523,2577.8,2577.1,2.3437]
[1724232613403,3.3523,2577.8,2577.0,0.7]
[1724232613828,2.72567476,2577.7,2576.8,7.41]
[1724232614012,2.3042,2577.5,2576.8,7.41]
[1724232614601,0.42141566,2577.4,2576.8,7.41]
[1724232614951,2.3166,2577.3,2576.8,7.41]
[1724232616047,2.3166,2577.3,2576.9,0.03805015]
[1724232618100,2.3166,2577.3,2576.1,0.7]
[1724232618382,3.0,2577.7,2576.2,0.03782622]
[1724232618383,2.3286,2577.1,2576.2,0.03782622]
[1724232618529,5.3286,2577.1,2576.1,0.7]
[1724232618733,2.4738,2577.0,2576.1,0.7]
[1724232619385,2.4738,2577.0,2576.2,0.03782622]
[1724232619977,3.4738,2577.0,2576.2,0.03782622]
[1724232620180,2.3453,2576.9,2576.2,0.34514884]
[1724232620330,2.3453,2576.9,2576.2,0.03782622]
[1724232621734,2.3453,2576.9,2576.2,2.42702622]
[1724232622882,1.0,2577.0,2576.4,0.7]
[1724232623290,1.0,2577.0,2576.5,0.03706118]
[1724232623291,2.4917,2576.9,2576.5,0.03706118]
[1724232623596,2.4917,2576.9,2576.0,0.7]
[1724232623727,2.4683,2576.7,2576.6,0.03706118]
[1724232623931,2.4683,2576.7,2576.0,0.7]
[1724232624159,2.4683,2576.7,2576.1,0.03687501]
[1724232626564,2.4064,2576.6,2575.7,7.41]
[1724232626763,2.981957,2576.6,2576.2,0.03725625]
[1724232626964,2.4064,2576.6,2575.8,0.55]
[1724232627168,2.4064,2576.6,2576.3,0.03725625]
[1724232627367,2.4064,2576.6,2575.5,0.7]
[1724232627664,2.4064,2576.6,2576.4,0.03725625]
[1724232627837,2.453,2576.4,2575.5,0.7]
[1724232629686,1.0,2576.0,2575.5,0.7]
[1724232629981,2.4864,2575.9,2575.5,0.7]
[1724232631149,1.0,2576.0,2575.5,0.7]
[1724232631517,1.0,2576.0,2575.8,0.7]
[1724232632047,1.0,2576.0,2575.8,1.05551]
[1724232632250,3.3649,2576.0,2575.4,0.7]
[1724232633285,2.3725,2575.9,2575.4,0.7]
[1724232634181,2.3725,2575.9,2575.2,3.0]
[1724232634482,2.3725,2575.9,2575.2,0.37]
[1724232635279,2.3725,2575.9,2575.4,0.7]
[1724232636078,2.3725,2575.9,2575.2,0.37]
[1724232636888,2.3725,2575.9,2575.3,0.03841787]
[1724232637223,2.3725,2575.9,2575.1,0.7]
[1724232637429,2.3725,2575.9,2575.4,0.03841787]
[1724232637594,2.3725,2575.9,2575.1,0.7]
[1724232637810,2.3725,2575.9,2575.5,0.03841787]
[1724232637999,2.3823,2575.7,2575.1,0.7]
[1724232638212,2.3823,2575.7,2575.6,0.03862191]
[1724232638424,2.3823,2575.7,2575.1,0.7]
[1724232638635,2.3823,2575.7,2575.6,0.03862191]
[1724232638934,2.3823,2575.7,2575.1,0.7]
[1724232639089,2.654255,2575.7,2575.6,0.03862191]
[1724232639288,2.654255,2575.7,2575.1,0.7]
[1724232639501,2.654255,2575.7,2575.6,0.03891466]
[1724232639691,2.654255,2575.7,2575.1,0.7]
[1724232639891,2.3823,2575.7,2575.6,0.03891466]
[1724232640090,2.3823,2575.7,2574.9,7.41]
[1724232640285,2.3823,2575.7,2575.6,0.03891466]
[1724232640487,2.3823,2575.7,2575.1,0.7]
[1724232640928,2.3823,2575.7,2575.2,0.03895015]
[1724232641136,2.3823,2575.7,2575.2,0.90105516]
[1724232641946,2.3823,2575.7,2575.2,0.03895015]
[1724232642332,2.3823,2575.7,2574.9,0.7]
[1724232642549,2.3823,2575.7,2575.3,0.03765181]
[1724232642752,2.3823,2575.7,2575.2,0.7]
[1724232642951,2.3823,2575.7,2575.3,0.29876]
[1724232643122,2.3823,2575.7,2575.3,0.33641181]
[1724232643648,8.167,2575.9,2575.3,0.33641181]
[1724232643950,5.8172,2575.9,2575.8,0.7]
[1724232644151,2.3498,2575.9,2575.5,0.7]
[1724232644551,2.3498,2575.9,2575.6,0.03751873]
[1724232645558,2.68478,2575.9,2575.3,7.41]
[1724232645762,2.3498,2575.9,2575.3,7.41]
[1724232646119,2.3498,2575.9,2575.4,0.03751873]
[1724232646356,2.3498,2575.9,2575.5,0.7]
[1724232646836,2.3498,2575.9,2575.6,0.03751873]
[1724232647034,1.0,2576.0,2575.6,0.03751873]
[1724232647437,1.0,2576.0,2575.8,0.7]
[1724232647966,1.0,2576.0,2575.9,0.03751873]
[1724232648521,1.0,2576.0,2575.5,0.7]
[1724232648752,1.0,2576.0,2575.6,0.03751873]
[1724232648953,1.0,2576.0,2575.6,0.58751873]
[1724232649346,1.0,2576.0,2575.6,2.97551873]
[1724232649749,1.0,2576.0,2575.8,0.7]
[1724232650063,1.0,2576.0,2575.9,0.03727923]
[1724232650642,1.0,2576.0,2575.9,2.85527923]
[1724232650839,1.0,2576.0,2575.9,6.21080715]
[1724232651665,0.19022952,2576.0,2575.9,6.21080715]
[1724232652578,2.3582,2577.2,2576.5,0.7]
[1724232652977,2.3582,2577.2,2576.4,2.2739]
[1724232652978,2.3582,2577.2,2576.8,0.7]
[1724232653766,2.3582,2577.2,2576.5,0.7]
[1724232653968,2.65487473,2577.2,2576.9,0.03685349]
[1724232654167,2.3582,2577.2,2576.5,0.7]
[1724232654491,2.3582,2577.2,2577.0,0.03685349]
[1724232654683,2.3582,2577.2,2576.8,0.7]
[1724232655313,2.3582,2577.2,2576.9,0.03685349]
[1724232655616,2.3582,2577.2,2576.8,0.7]
[1724232655810,2.3582,2577.2,2577.0,0.03685349]
[1724232656010,2.3582,2577.2,2576.5,0.7]
[1724232656011,2.65487473,2577.2,2576.5,0.7]
[1724232656315,2.65487473,2577.2,2577.1,0.03685349]
[1724232656480,2.65487473,2577.2,2576.5,0.7]
[1724232656808,2.3582,2577.2,2576.6,0.03685349]
[1724232657671,2.3582,2577.2,2576.8,0.7]
[1724232658179,2.3582,2577.2,2576.9,0.03685349]
[1724232658532,8.8172,2577.7,2576.8,0.7]
[1724232658533,2.3229,2577.6,2576.8,0.7]
[1724232658663,2.3229,2577.6,2577.1,0.7]
[1724232658865,2.4344,2577.9,2577.4,0.7]
[1724232659166,5.8172,2578.4,2577.5,0.03685349]
[1724232659167,2.4783,2578.3,2577.5,0.03685349]
[1724232659372,2.4783,2578.3,2577.7,0.7]
[1724232659373,3.36867827,2578.3,2577.7,0.7]
[1724232659570,2.4783,2578.3,2577.7,0.7]
[1724232660002,2.4783,2578.3,2577.8,0.03491192]
[1724232661520,0.42225923,2578.2,2577.8,0.03491192]
[1724232661732,2.70655923,2578.1,2577.8,0.03491192]
[1724232661889,0.4222382,2578.0,2577.3,0.7]
[1724232662088,2.3315,2577.8,2577.3,0.7]
[1724232662289,2.3315,2577.8,2577.4,0.03444235]
[1724232663923,2.494,2577.6,2576.7,0.7]
[1724232664234,2.494,2577.5,2576.8,0.03466382]
[1724232664544,5.494,2577.5,2576.7,0.7]
[1724232664903,2.494,2577.5,2576.8,0.03485875]
[1724232665124,0.5494,2577.4,2576.8,0.03485875]
[1724232665327,0.5494,2577.4,2576.7,0.7]
[1724232665548,2.2516,2577.3,2576.3,0.7]
[1724232665852,2.2516,2577.1,2576.3,0.7]
[1724232666057,2.2516,2577.1,2576.4,0.03509803]
[1724232666493,2.3571,2577.0,2576.4,0.03509803]
[1724232666697,2.3571,2577.0,2576.2,0.7]
[1724232666892,0.53571,2576.9,2576.5,0.0353285]
[1724232667111,0.53571,2576.9,2576.2,0.7]
[1724232667325,0.53571,2576.9,2576.6,0.0353285]
[1724232667546,0.53571,2576.9,2575.9,8.11]
[1724232667861,2.650281,2576.8,2575.9,0.811]
[1724232668058,2.4337,2576.7,2576.0,0.0353285]
[1724232668270,2.4337,2576.7,2575.8,0.7]
[1724232668565,2.4337,2576.7,2576.1,0.03557674]
[1724232668727,2.4337,2576.7,2575.8,0.7]
[1724232669059,2.4337,2576.7,2575.9,0.55]
[1724232669212,3.030641,2576.7,2575.9,0.58557674]
[1724232669417,3.030641,2576.7,2575.9,0.55]
[1724232669715,4.056,2576.6,2575.5,3.0]
[1724232669915,2.3412,2576.2,2575.4,3.0]
[1724232670163,2.3412,2576.2,2575.6,0.03557674]
[1724232670370,2.3412,2576.2,2575.3,0.7]
[1724232670523,2.3412,2576.2,2575.7,0.03557674]
[1724232670864,2.3412,2576.2,2575.8,0.03557674]
[1724232671068,2.3412,2576.2,2575.6,0.7]
[1724232671222,2.3412,2576.2,2575.9,0.03557674]
[1724232671424,2.4927,2576.5,2575.9,0.7]
[1724232671767,2.4927,2576.5,2576.0,0.03557674]
[1724232672061,2.83763351,2576.5,2576.0,0.03557674]
[1724232672367,2.4927,2576.5,2576.0,0.03557674]
[1724232672855,2.4446,2576.8,2576.0,0.58557674]
[1724232673613,2.4446,2576.8,2576.0,0.03557674]
[1724232676460,6.5006,2576.8,2576.0,0.03557674]
[1724232676673,2.3433,2576.6,2576.0,0.03557674]
[1724232676819,3.42194871,2576.7,2575.7,7.41]
[1724232676820,2.3433,2576.4,2575.7,7.41]
[1724232677024,2.3433,2576.4,2576.1,0.03658741]
[1724232677262,2.3433,2576.4,2575.7,7.41]
[1724232677472,2.3433,2576.4,2576.2,0.03658741]
[1724232677764,2.3433,2576.4,2575.7,7.41]
[1724232677979,2.2749,2576.2,2575.8,0.03566514]
[1724232678285,2.4637,2576.0,2575.3,0.7]
[1724232680667,2.4637,2576.0,2575.4,0.03557134]
[1724232681674,2.4637,2576.0,2575.3,0.7]
[1724232681981,4.056,2575.7,2574.8,0.7]
[1724232682184,3.88147,2576.4,2574.3,2.9607]
[1724232682185,2.4458,2575.3,2574.3,2.9607]
[1724232682334,2.4458,2575.3,2574.3,0.7]
[1724232683172,2.4458,2575.3,2574.0,0.7]
[1724232683356,2.2523,2575.1,2574.0,0.7]
[1724232683884,2.2523,2575.1,2574.1,2.2683]
[1724232684094,2.2523,2575.1,2574.3,0.7]
[1724232684590,2.4944,2575.4,2574.6,0.7]
[1724232684963,2.4944,2575.4,2574.7,0.55]
[1724232685961,2.4944,2575.4,2574.6,0.7]
[1724232685962,2.74384,2575.4,2574.6,0.7]
[1724232686733,2.4406,2575.3,2574.0,0.7]
[1724232686886,2.4406,2575.2,2574.0,0.7]
[1724232687245,3.0,2575.3,2574.0,0.7]
[1724232687246,2.4654,2575.0,2574.0,0.7]
[1724232687441,3.29366,2575.0,2574.0,0.7]
[1724232687647,2.4654,2575.7,2574.5,0.7]
[1724232688800,2.4654,2575.7,2574.6,0.03556518]
[1724232688999,2.4654,2575.7,2574.9,0.7]
[1724232689347,2.4654,2575.7,2575.0,0.03556518]
[1724232691821,2.4654,2575.7,2574.6,1.25]
[1724232691984,0.24654,2575.6,2575.1,0.03556518]
[1724232692316,0.24654,2575.6,2574.6,1.25]
[1724232692623,0.24654,2575.6,2574.7,0.03556518]
[1724232692982,0.24654,2575.6,2574.7,0.58556518]
[1724232693181,2.4654,2575.7,2574.7,0.58556518]
[1724232693722,2.3078,2575.9,2574.9,0.7]
[1724232693878,2.3078,2575.9,2575.0,0.55]
[1724232694080,3.0,2576.0,2575.1,2.2798]
[1724232694322,3.0,2576.0,2575.2,0.28660568]
[1724232694524,3.0,2576.0,2575.2,0.32286243]
[1724232695280,2.3336,2575.9,2575.2,0.32286243]
[1724232695485,2.3336,2575.9,2575.2,0.03625675]
[1724232695697,2.3336,2575.9,2575.0,0.55]
[1724232695880,2.3336,2575.9,2575.3,0.03625675]
[1724232696081,2.3336,2575.9,2575.0,0.55]
[1724232696289,2.3336,2575.9,2575.4,0.03625675]
[1724232696527,2.3336,2575.9,2575.0,0.55]
[1724232696725,2.3336,2575.9,2575.1,0.36381]
[1724232696895,2.3336,2575.9,2575.1,0.03625675]
[1724232697322,2.3336,2575.9,2574.7,3.0]
[1724232697624,2.3336,2575.9,2574.8,0.55]
[1724232697931,2.3336,2575.9,2574.8,0.58600837]
[1724232698504,2.3336,2575.9,2575.1,3.1242]
[1724232698681,3.0,2576.0,2575.2,0.86242]
[1724232699039,3.0,2576.0,2575.2,0.8985703]
[1724232700845,3.0,2576.0,2575.2,0.0361503]
[1724232700846,2.2512,2575.9,2575.2,0.0361503]
[1724232701042,2.2512,2575.9,2574.8,0.7]
[1724232701330,2.2512,2575.9,2575.3,0.03483657]
[1724232701540,2.2512,2575.9,2574.8,0.7]
[1724232701892,2.2512,2575.9,2574.9,0.03483657]
[1724232702102,0.52512,2575.8,2574.9,0.33928023]
[1724232702431,3.0,2575.8,2574.9,0.33928023]
[1724232702630,2.2512,2575.9,2574.9,0.33928023]
[1724232702631,5.2512,2575.9,2574.9,0.33928023]
[1724232702836,2.2512,2575.9,2574.9,0.33928023]
[1724232703208,2.2512,2575.9,2574.9,0.03483657]
[1724232703427,5.428,2575.7,2574.4,2.4229]
[1724232703733,5.3671,2575.6,2575.0,0.03483657]
[1724232703903,5.3671,2575.6,2574.4,2.4229]
[1724232704234,1.07951,2575.5,2574.5,0.27712657]
[1724232704991,1.07951,2575.5,2574.5,0.97712657]
[1724232705342,5.3671,2575.6,2574.5,0.97712657]
[1724232705558,5.3671,2575.6,2574.6,0.55]
[1724232706139,2.4119,2575.9,2574.8,0.7]
[1724232706338,2.4119,2575.9,2574.9,2.3982]
[1724232706726,2.4119,2575.9,2575.1,0.7]
[1724232706930,3.0,2576.0,2575.1,0.7]
[1724232707158,3.0,2576.0,2575.2,0.03494296]
[1724232708124,3.0,2576.0,2575.3,2.2849]